[Event "*** SCC Grand Prix: Titled Tuesday Blitz"]
[Site "Chess.com"]
[Date "2020.06.09"]
[Round "3"]
[White "WildTricks"]
[Black "Chuchofrio1"]
[Result "1-0"]
[WhiteElo "2517"]
[BlackElo "2210"]
[TimeControl "180+1"]
[EndTime "9:27:37 PDT"]
[Termination "WildTricks won by resignation"]

1. e4 {[%clk 0:03:00.9]} 1... c5 {[%clk 0:03:00]} 2. Nf3 {[%clk 0:03:00.3]} 2...
Nc6 {[%clk 0:02:59.6]} 3. d4 {[%clk 0:03:00.8]} 3... cxd4 {[%clk 0:02:59.8]} 4.
Nxd4 {[%clk 0:03:00]} 4... Nf6 {[%clk 0:02:59.9]} 5. Nc3 {[%clk 0:03:00.2]} 5...
e5 {[%clk 0:02:59.8]} 6. Ndb5 {[%clk 0:03:00.7]} 6... d6 {[%clk 0:02:59.5]} 7.
Bg5 {[%clk 0:03:00]} 7... a6 {[%clk 0:02:59.1]} 8. Na3 {[%clk 0:02:59.8]} 8...
b5 {[%clk 0:02:59.2]} 9. Bxf6 {[%clk 0:03:00]} 9... gxf6 {[%clk 0:03:00.1]} 10.
Nd5 {[%clk 0:03:00]} 10... Bg7 {[%clk 0:03:00.3]} 11. g3 {[%clk 0:03:00.3]}
11... Ne7 {[%clk 0:02:53.9]} 12. Nxe7 {[%clk 0:02:57.9]} 12... Qxe7 {[%clk
0:02:54.3]} 13. Bg2 {[%clk 0:02:57.9]} 13... Bb7 {[%clk 0:02:54.3]} 14. O-O
{[%clk 0:02:55.6]} 14... O-O {[%clk 0:02:54.2]} 15. c3 {[%clk 0:02:53.7]} 15...
Rfd8 {[%clk 0:02:51.2]} 16. Nc2 {[%clk 0:02:49.8]} 16... f5 {[%clk 0:02:51.3]}
17. exf5 {[%clk 0:02:44.2]} 17... Bxg2 {[%clk 0:02:49.2]} 18. Kxg2 {[%clk
0:02:45.1]} 18... d5 {[%clk 0:02:48.1]} 19. Qe2 {[%clk 0:02:41.6]} 19... Qb7
{[%clk 0:02:39.5]} 20. Kg1 {[%clk 0:02:39.2]} 20... d4 {[%clk 0:02:35.2]} 21.
Rad1 {[%clk 0:02:32.4]} 21... Rac8 {[%clk 0:02:20.9]} 22. cxd4 {[%clk
0:02:25.1]} 22... exd4 {[%clk 0:02:16.7]} 23. Nb4 {[%clk 0:02:24.1]} 23... Re8
{[%clk 0:02:07]} 24. Qg4 {[%clk 0:02:20.5]} 24... Kh8 {[%clk 0:02:00.9]} 25. Nd3
{[%clk 0:02:14.4]} 25... Rc2 {[%clk 0:01:53.7]} 26. Rfe1 {[%clk 0:02:12.7]}
26... Qc8 {[%clk 0:01:44.7]} 27. Rxe8+ {[%clk 0:01:50.7]} 27... Qxe8 {[%clk
0:01:44.3]} 28. Re1 {[%clk 0:01:51.3]} 28... Qd8 {[%clk 0:01:32.8]} 29. Qe4
{[%clk 0:01:34.9]} 29... Rc8 {[%clk 0:01:26.6]} 30. Ne5 {[%clk 0:01:21.9]} 30...
Kg8 {[%clk 0:01:10]} 31. f4 {[%clk 0:00:59.8]} 31... Qd6 {[%clk 0:00:57]} 32.
Qb7 {[%clk 0:00:52]} 32... Re8 {[%clk 0:00:51.3]} 33. Qxf7+ {[%clk 0:00:50.5]}
1-0

[Event "*** SCC Grand Prix: Titled Tuesday Blitz"]
[Site "Chess.com"]
[Date "2020.06.09"]
[Round "3"]
[White "mamonika"]
[Black "Xeniya2005"]
[Result "0-1"]
[WhiteElo "1930"]
[BlackElo "2310"]
[TimeControl "180+1"]
[EndTime "9:27:38 PDT"]
[Termination "Xeniya2005 won on time"]

1. e4 {[%clk 0:03:00.9]} 1... e6 {[%clk 0:02:59.4]} 2. d4 {[%clk 0:02:56.9]}
2... d5 {[%clk 0:02:58.5]} 3. Nd2 {[%clk 0:02:54.3]} 3... Nc6 {[%clk 0:02:57]}
4. e5 {[%clk 0:02:46.5]} 4... Nxd4 {[%clk 0:02:52.4]} 5. Ngf3 {[%clk 0:02:38.7]}
5... Nxf3+ {[%clk 0:02:48.6]} 6. Nxf3 {[%clk 0:02:37.1]} 6... c5 {[%clk
0:02:48.3]} 7. Be2 {[%clk 0:02:30]} 7... Ne7 {[%clk 0:02:44.1]} 8. O-O {[%clk
0:02:29.3]} 8... Nc6 {[%clk 0:02:41.1]} 9. c4 {[%clk 0:02:20.5]} 9... Be7 {[%clk
0:02:36.2]} 10. Bf4 {[%clk 0:02:03.4]} 10... h6 {[%clk 0:02:31.5]} 11. Rc1
{[%clk 0:01:40.6]} 11... O-O {[%clk 0:02:24.2]} 12. Qc2 {[%clk 0:01:34.2]} 12...
b6 {[%clk 0:02:19.8]} 13. Rfd1 {[%clk 0:01:33.8]} 13... Bb7 {[%clk 0:02:15]} 14.
a3 {[%clk 0:01:12.5]} 14... Qd7 {[%clk 0:02:08.8]} 15. Rd2 {[%clk 0:01:11.4]}
15... Rfd8 {[%clk 0:02:06.3]} 16. Rcd1 {[%clk 0:01:11.4]} 16... d4 {[%clk
0:02:03.3]} 17. Ne1 {[%clk 0:00:58.5]} 17... Qc7 {[%clk 0:01:55.6]} 18. Bf3
{[%clk 0:00:51.3]} 18... Rac8 {[%clk 0:01:46.7]} 19. Nd3 {[%clk 0:00:36.5]}
19... a6 {[%clk 0:01:42.7]} 20. Re1 {[%clk 0:00:14.4]} 20... Na7 {[%clk
0:01:35.3]} 21. Bxb7 {[%clk 0:00:09.3]} 21... Qxb7 {[%clk 0:01:36.2]} 22. Qd1
{[%clk 0:00:05.8]} 22... Kh8 {[%clk 0:01:32]} 23. Qg4 {[%clk 0:00:05.6]} 23...
b5 {[%clk 0:01:29.7]} 24. b3 {[%clk 0:00:04.9]} 24... Nc6 {[%clk 0:01:27.3]} 25.
Qh5 {[%clk 0:00:03.6]} 25... Bf8 {[%clk 0:01:25.6]} 26. Nc1 {[%clk 0:00:01.9]}
26... Na5 {[%clk 0:01:24.3]} 27. cxb5 {[%clk 0:00:01.6]} 27... axb5 {[%clk
0:01:24.1]} 28. Rd3 {[%clk 0:00:01.9]} 28... c4 {[%clk 0:01:21.8]} 29. Rg3
{[%clk 0:00:01.9]} 29... d3 {[%clk 0:01:20.4]} 0-1

[Event "*** SCC Grand Prix: Titled Tuesday Blitz"]
[Site "Chess.com"]
[Date "2020.06.09"]
[Round "3"]
[White "GM_dmitrij"]
[Black "Iball95"]
[Result "1-0"]
[WhiteElo "2974"]
[BlackElo "2690"]
[TimeControl "180+1"]
[EndTime "9:27:39 PDT"]
[Termination "GM_dmitrij won by resignation"]

1. e4 {[%clk 0:03:00.9]} 1... c5 {[%clk 0:02:59.3]} 2. Nf3 {[%clk 0:03:01.3]}
2... Nc6 {[%clk 0:02:59.7]} 3. Bb5 {[%clk 0:03:01.4]} 3... d6 {[%clk 0:03:00]}
4. O-O {[%clk 0:03:01.2]} 4... Nf6 {[%clk 0:03:00]} 5. Re1 {[%clk 0:03:01.6]}
5... Bd7 {[%clk 0:02:58.8]} 6. c3 {[%clk 0:02:59.7]} 6... a6 {[%clk 0:02:59]} 7.
Bf1 {[%clk 0:03:00]} 7... Bg4 {[%clk 0:02:59.1]} 8. d4 {[%clk 0:02:58.1]} 8...
cxd4 {[%clk 0:02:49.1]} 9. cxd4 {[%clk 0:02:59]} 9... d5 {[%clk 0:02:49.4]} 10.
e5 {[%clk 0:02:55.9]} 10... Ne4 {[%clk 0:02:49.2]} 11. h3 {[%clk 0:02:56.2]}
11... Bh5 {[%clk 0:02:49.1]} 12. e6 {[%clk 0:02:55.3]} 12... fxe6 {[%clk
0:02:50]} 13. Nc3 {[%clk 0:02:55.1]} 13... Bxf3 {[%clk 0:01:53.6]} 14. Qxf3
{[%clk 0:02:54.1]} 14... Nxc3 {[%clk 0:01:34.4]} 15. bxc3 {[%clk 0:02:52.7]}
15... e5 {[%clk 0:01:28.1]} 16. dxe5 {[%clk 0:02:41.3]} 16... e6 {[%clk
0:01:28.3]} 17. Rb1 {[%clk 0:02:41.8]} 17... Qd7 {[%clk 0:01:27]} 18. c4 {[%clk
0:02:37.8]} 18... d4 {[%clk 0:01:22.9]} 19. Bd3 {[%clk 0:02:30.3]} 19... g6
{[%clk 0:01:14.4]} 20. Be4 {[%clk 0:02:24]} 20... Rc8 {[%clk 0:01:14.2]} 21. Qg3
{[%clk 0:02:01.6]} 21... Bg7 {[%clk 0:01:12.4]} 22. Ba3 {[%clk 0:02:01.9]} 22...
Nxe5 {[%clk 0:00:23.6]} 23. Rxb7 {[%clk 0:01:58.2]} 23... Rc7 {[%clk 0:00:23.6]}
24. Reb1 {[%clk 0:01:48.6]} 24... d3 {[%clk 0:00:11.8]} 25. Rb8+ {[%clk
0:01:33.8]} 25... Rc8 {[%clk 0:00:11.8]} 26. Rxc8+ {[%clk 0:01:34.1]} 26... Qxc8
{[%clk 0:00:12.7]} 27. Bd6 {[%clk 0:01:34.9]} 27... Nxc4 {[%clk 0:00:03]} 28.
Rb8 {[%clk 0:01:34.4]} 28... Nxd6 {[%clk 0:00:03.5]} 29. Qxd6 {[%clk 0:01:31.4]}
29... Kf7 {[%clk 0:00:02.5]} 30. Rxc8 {[%clk 0:01:31.4]} 30... Rxc8 {[%clk
0:00:03.4]} 31. Qd7+ {[%clk 0:01:31.9]} 1-0

[Event "*** SCC Grand Prix: Titled Tuesday Blitz"]
[Site "Chess.com"]
[Date "2020.06.09"]
[Round "3"]
[White "KuzubovYuriy"]
[Black "northridgehawk"]
[Result "1-0"]
[WhiteElo "2746"]
[BlackElo "2358"]
[TimeControl "180+1"]
[EndTime "9:27:43 PDT"]
[Termination "KuzubovYuriy won by resignation"]

1. d4 {[%clk 0:03:00.9]} 1... Nf6 {[%clk 0:02:55.8]} 2. c4 {[%clk 0:03:00.7]}
2... g6 {[%clk 0:02:56.2]} 3. Nc3 {[%clk 0:03:00.1]} 3... d5 {[%clk 0:02:56.6]}
4. cxd5 {[%clk 0:03:01]} 4... Nxd5 {[%clk 0:02:57.2]} 5. Bd2 {[%clk 0:03:00.7]}
5... Nb6 {[%clk 0:02:56.4]} 6. e4 {[%clk 0:03:01]} 6... Bg7 {[%clk 0:02:56.7]}
7. Be3 {[%clk 0:03:00.9]} 7... Nc6 {[%clk 0:02:44.5]} 8. Bb5 {[%clk 0:02:59.8]}
8... O-O {[%clk 0:02:43.1]} 9. Nge2 {[%clk 0:02:48.1]} 9... a6 {[%clk
0:02:28.5]} 10. Bxc6 {[%clk 0:02:46.6]} 10... bxc6 {[%clk 0:02:29.4]} 11. Qc2
{[%clk 0:02:34.4]} 11... Nc4 {[%clk 0:02:25.5]} 12. Bg5 {[%clk 0:02:29.9]} 12...
c5 {[%clk 0:02:09.7]} 13. Nd5 {[%clk 0:02:19.9]} 13... f6 {[%clk 0:01:35.8]} 14.
Qxc4 {[%clk 0:02:14.2]} 14... e6 {[%clk 0:01:34.5]} 15. Nxf6+ {[%clk 0:02:07.8]}
15... Bxf6 {[%clk 0:01:35.4]} 16. Bxf6 {[%clk 0:02:07.7]} 16... Qxf6 {[%clk
0:01:35.9]} 17. O-O {[%clk 0:02:07.1]} 17... cxd4 {[%clk 0:01:35.3]} 18. Qxd4
{[%clk 0:02:03.5]} 18... e5 {[%clk 0:01:29.4]} 19. Qe3 {[%clk 0:01:54.8]} 19...
Rb8 {[%clk 0:01:27.5]} 20. b3 {[%clk 0:01:53.3]} 20... Bg4 {[%clk 0:01:20.5]}
21. Nc3 {[%clk 0:01:50.8]} 21... Rbd8 {[%clk 0:01:16]} 22. h3 {[%clk 0:01:48.7]}
22... Be6 {[%clk 0:01:14.6]} 23. Rad1 {[%clk 0:01:44.4]} 23... Rd4 {[%clk
0:01:13.2]} 24. Ne2 {[%clk 0:01:43.4]} 24... Rd6 {[%clk 0:01:08.6]} 25. Rxd6
{[%clk 0:01:40.6]} 25... cxd6 {[%clk 0:01:09.5]} 26. Rc1 {[%clk 0:01:40.2]}
26... Rd8 {[%clk 0:01:09]} 27. Rc6 {[%clk 0:01:32.3]} 27... a5 {[%clk
0:01:06.4]} 28. Qb6 {[%clk 0:01:26.7]} 28... Bf7 {[%clk 0:00:57.9]} 29. Qxa5
{[%clk 0:01:21.9]} 29... Qe7 {[%clk 0:00:51.1]} 30. Rc7 {[%clk 0:01:19.7]} 30...
Qe6 {[%clk 0:00:50.1]} 31. Rxf7 {[%clk 0:01:17.2]} 31... Rc8 {[%clk 0:00:38.9]}
32. Rc7 {[%clk 0:01:15.8]} 32... Rf8 {[%clk 0:00:38.1]} 33. Ng3 {[%clk
0:01:13.5]} 33... Qf6 {[%clk 0:00:33.6]} 34. Qd2 {[%clk 0:01:12.6]} 34... h5
{[%clk 0:00:29.5]} 35. Rd7 {[%clk 0:01:10.5]} 35... h4 {[%clk 0:00:28.9]} 36.
Rxd6 {[%clk 0:01:10.4]} 36... Qf7 {[%clk 0:00:27.2]} 37. Nf5 {[%clk 0:01:09.5]}
37... gxf5 {[%clk 0:00:26.2]} 38. Qg5+ {[%clk 0:01:09.5]} 1-0

[Event "*** SCC Grand Prix: Titled Tuesday Blitz"]
[Site "Chess.com"]
[Date "2020.06.09"]
[Round "3"]
[White "Quattroporte300"]
[Black "ajian"]
[Result "0-1"]
[WhiteElo "2237"]
[BlackElo "2448"]
[TimeControl "180+1"]
[EndTime "9:27:43 PDT"]
[Termination "ajian won by resignation"]

1. e4 {[%clk 0:03:00.9]} 1... c5 {[%clk 0:02:58.9]} 2. Nf3 {[%clk 0:03:00.5]}
2... Nc6 {[%clk 0:02:59.2]} 3. d4 {[%clk 0:02:59.8]} 3... cxd4 {[%clk
0:03:00.1]} 4. Nxd4 {[%clk 0:03:00.3]} 4... Nf6 {[%clk 0:03:00.7]} 5. Nc3 {[%clk
0:02:59.4]} 5... e5 {[%clk 0:03:00.9]} 6. Ndb5 {[%clk 0:02:58.7]} 6... d6 {[%clk
0:03:01.5]} 7. Bg5 {[%clk 0:02:57.1]} 7... a6 {[%clk 0:03:01.8]} 8. Na3 {[%clk
0:02:56.8]} 8... b5 {[%clk 0:03:02.7]} 9. Bxf6 {[%clk 0:02:56.9]} 9... gxf6
{[%clk 0:03:03.1]} 10. Nd5 {[%clk 0:02:57.8]} 10... f5 {[%clk 0:03:03.6]} 11. g3
{[%clk 0:02:57.7]} 11... fxe4 {[%clk 0:03:03.5]} 12. Bg2 {[%clk 0:02:57.5]}
12... Bf5 {[%clk 0:03:03.9]} 13. O-O {[%clk 0:02:55]} 13... Bg7 {[%clk 0:03:04]}
14. Re1 {[%clk 0:02:55.2]} 14... O-O {[%clk 0:02:57.4]} 15. c3 {[%clk
0:02:54.3]} 15... Rb8 {[%clk 0:02:39.4]} 16. Nc2 {[%clk 0:02:50.7]} 16... a5
{[%clk 0:02:38.7]} 17. a3 {[%clk 0:02:41.7]} 17... Be6 {[%clk 0:02:38.2]} 18.
Bxe4 {[%clk 0:02:36.2]} 18... f5 {[%clk 0:02:38.6]} 19. Bg2 {[%clk 0:02:32.7]}
19... Ne7 {[%clk 0:02:29.6]} 20. Nce3 {[%clk 0:02:21.9]} 20... Kh8 {[%clk
0:02:15.8]} 21. Qd2 {[%clk 0:02:03]} 21... f4 {[%clk 0:01:31.5]} 22. gxf4 {[%clk
0:01:28.2]} 22... exf4 {[%clk 0:01:32.4]} 23. Nxe7 {[%clk 0:01:22.9]} 23... Qxe7
{[%clk 0:01:14.1]} 24. Nf5 {[%clk 0:01:13]} 24... Rxf5 {[%clk 0:01:06.4]} 25.
Rad1 {[%clk 0:00:59.8]} 25... Re5 {[%clk 0:01:00.2]} 26. Kh1 {[%clk 0:00:55.5]}
26... Rf8 {[%clk 0:00:58]} 27. Rxe5 {[%clk 0:00:40.7]} 27... Bxe5 {[%clk
0:00:56.7]} 28. Qe2 {[%clk 0:00:34.7]} 28... f3 {[%clk 0:00:51.5]} 29. Bxf3
{[%clk 0:00:33.7]} 29... Qh4 {[%clk 0:00:52]} 0-1

[Event "*** SCC Grand Prix: Titled Tuesday Blitz"]
[Site "Chess.com"]
[Date "2020.06.09"]
[Round "3"]
[White "Haykoooo0o"]
[Black "Maxim_e2e4"]
[Result "1-0"]
[WhiteElo "2562"]
[BlackElo "2353"]
[TimeControl "180+1"]
[EndTime "9:27:45 PDT"]
[Termination "Haykoooo0o won by resignation"]

1. e4 {[%clk 0:03:00.9]} 1... e5 {[%clk 0:03:00]} 2. Nf3 {[%clk 0:03:00.3]} 2...
Nc6 {[%clk 0:03:00.1]} 3. Be2 {[%clk 0:02:56.3]} 3... Nf6 {[%clk 0:02:55.2]} 4.
Nc3 {[%clk 0:02:56.6]} 4... g6 {[%clk 0:02:50.4]} 5. d4 {[%clk 0:02:55.8]} 5...
exd4 {[%clk 0:02:49.9]} 6. Nxd4 {[%clk 0:02:56.7]} 6... Bg7 {[%clk 0:02:49.5]}
7. Be3 {[%clk 0:02:57.2]} 7... O-O {[%clk 0:02:48.5]} 8. Qd2 {[%clk 0:02:54.7]}
8... Re8 {[%clk 0:02:46.2]} 9. f3 {[%clk 0:02:49.9]} 9... d5 {[%clk 0:02:44.1]}
10. Nxc6 {[%clk 0:02:40.2]} 10... bxc6 {[%clk 0:02:43.5]} 11. O-O-O {[%clk
0:02:40.7]} 11... Be6 {[%clk 0:02:15.8]} 12. e5 {[%clk 0:02:26.6]} 12... Nd7
{[%clk 0:02:11.7]} 13. f4 {[%clk 0:02:23]} 13... f6 {[%clk 0:02:01.4]} 14. exf6
{[%clk 0:01:59.5]} 14... Qxf6 {[%clk 0:01:59.1]} 15. Bd4 {[%clk 0:01:49]} 15...
Qxd4 {[%clk 0:01:57.3]} 16. Qxd4 {[%clk 0:01:48]} 16... Bxd4 {[%clk 0:01:57.8]}
17. Rxd4 {[%clk 0:01:48.9]} 17... c5 {[%clk 0:01:57.3]} 18. Rdd1 {[%clk
0:01:43.3]} 18... d4 {[%clk 0:01:57]} 19. Nb5 {[%clk 0:01:37.4]} 19... Rac8
{[%clk 0:01:12.8]} 20. Bf3 {[%clk 0:01:22.7]} 20... a6 {[%clk 0:01:10.4]} 21.
Na7 {[%clk 0:01:17.1]} 21... Rb8 {[%clk 0:01:04.1]} 22. Rhe1 {[%clk 0:01:11.5]}
22... Kf7 {[%clk 0:00:50]} 23. Nc6 {[%clk 0:01:02.9]} 23... Rb6 {[%clk
0:00:49.3]} 24. Ne5+ {[%clk 0:01:02.9]} 24... Nxe5 {[%clk 0:00:46.2]} 25. Rxe5
{[%clk 0:01:03.8]} 25... Bxa2 {[%clk 0:00:27.8]} 26. Rxc5 {[%clk 0:00:47.1]} 1-0

[Event "*** SCC Grand Prix: Titled Tuesday Blitz"]
[Site "Chess.com"]
[Date "2020.06.09"]
[Round "3"]
[White "David_Paravyan"]
[Black "ElviraBerend"]
[Result "1-0"]
[WhiteElo "2982"]
[BlackElo "2385"]
[TimeControl "180+1"]
[EndTime "9:27:51 PDT"]
[Termination "David_Paravyan won by resignation"]

1. e4 {[%clk 0:03:00.9]} 1... e5 {[%clk 0:02:59]} 2. Nf3 {[%clk 0:03:01]} 2...
Nc6 {[%clk 0:02:57.8]} 3. Bb5 {[%clk 0:03:01.3]} 3... Nf6 {[%clk 0:02:56.8]} 4.
d3 {[%clk 0:03:00.3]} 4... d6 {[%clk 0:02:54.9]} 5. O-O {[%clk 0:02:58.8]} 5...
Be7 {[%clk 0:02:53.9]} 6. c3 {[%clk 0:02:58.6]} 6... O-O {[%clk 0:02:52.8]} 7.
Re1 {[%clk 0:02:59.1]} 7... a6 {[%clk 0:02:47.4]} 8. Ba4 {[%clk 0:02:59.4]} 8...
h6 {[%clk 0:02:46.8]} 9. Nbd2 {[%clk 0:02:57.8]} 9... b5 {[%clk 0:02:39.5]} 10.
Bb3 {[%clk 0:02:56.9]} 10... Bb7 {[%clk 0:02:39]} 11. Nf1 {[%clk 0:02:56.4]}
11... Na5 {[%clk 0:02:37.9]} 12. Bc2 {[%clk 0:02:56.1]} 12... Re8 {[%clk
0:02:32.2]} 13. Ng3 {[%clk 0:02:56.3]} 13... Bf8 {[%clk 0:02:32.1]} 14. d4
{[%clk 0:02:55.1]} 14... Nc4 {[%clk 0:02:23.3]} 15. a4 {[%clk 0:02:48.2]} 15...
g6 {[%clk 0:02:17.9]} 16. b3 {[%clk 0:02:46.5]} 16... Nb6 {[%clk 0:02:16]} 17.
a5 {[%clk 0:02:37.7]} 17... Nbd7 {[%clk 0:02:14.7]} 18. d5 {[%clk 0:02:35.3]}
18... Bg7 {[%clk 0:02:13.3]} 19. h3 {[%clk 0:02:34.1]} 19... Qc8 {[%clk
0:02:03.3]} 20. Be3 {[%clk 0:02:33.1]} 20... c6 {[%clk 0:02:02.2]} 21. c4 {[%clk
0:02:32.8]} 21... bxc4 {[%clk 0:01:31.5]} 22. bxc4 {[%clk 0:02:33.7]} 22... cxd5
{[%clk 0:01:31]} 23. cxd5 {[%clk 0:02:34.6]} 23... Nc5 {[%clk 0:01:31]} 24. Rb1
{[%clk 0:02:31.9]} 24... Qc7 {[%clk 0:01:27.2]} 25. Bxc5 {[%clk 0:02:31.5]}
25... dxc5 {[%clk 0:01:26.9]} 26. Ba4 {[%clk 0:02:23.7]} 26... Red8 {[%clk
0:01:25.6]} 27. Qc2 {[%clk 0:02:22]} 27... Ne8 {[%clk 0:01:17.9]} 28. Rec1
{[%clk 0:02:09.6]} 28... Rac8 {[%clk 0:01:16.1]} 29. Rb6 {[%clk 0:02:04.3]}
29... Nd6 {[%clk 0:01:14.2]} 30. Bc6 {[%clk 0:02:03.2]} 30... Bxc6 {[%clk
0:01:04.4]} 31. dxc6 {[%clk 0:02:03.3]} 31... c4 {[%clk 0:01:03.3]} 32. Nf1
{[%clk 0:01:49.4]} 32... f5 {[%clk 0:00:47.6]} 33. exf5 {[%clk 0:01:47.6]} 33...
gxf5 {[%clk 0:00:46.4]} 34. Ne3 {[%clk 0:01:47.9]} 34... e4 {[%clk 0:00:45.4]}
35. Nd2 {[%clk 0:01:39.2]} 35... c3 {[%clk 0:00:42.9]} 36. Nb1 {[%clk
0:01:30.6]} 36... f4 {[%clk 0:00:42.4]} 37. Nd5 {[%clk 0:01:29.9]} 37... Qf7
{[%clk 0:00:41.6]} 38. Nbxc3 {[%clk 0:01:28.4]} 38... f3 {[%clk 0:00:38.5]} 39.
Rd1 {[%clk 0:00:58.1]} 39... Qg6 {[%clk 0:00:36.7]} 40. Ne7+ {[%clk 0:00:57.7]}
1-0

[Event "*** SCC Grand Prix: Titled Tuesday Blitz"]
[Site "Chess.com"]
[Date "2020.06.09"]
[Round "3"]
[White "Jbd735"]
[Black "Uchihovich"]
[Result "1-0"]
[WhiteElo "2455"]
[BlackElo "2677"]
[TimeControl "180+1"]
[EndTime "9:27:51 PDT"]
[Termination "Jbd735 won by resignation"]

1. e4 {[%clk 0:03:00.9]} 1... d5 {[%clk 0:02:58.7]} 2. exd5 {[%clk 0:03:00.5]}
2... Qxd5 {[%clk 0:02:59.6]} 3. Nc3 {[%clk 0:03:00.4]} 3... Qd6 {[%clk
0:03:00.2]} 4. Nf3 {[%clk 0:02:56.8]} 4... Nf6 {[%clk 0:03:00.1]} 5. d4 {[%clk
0:02:54.8]} 5... c6 {[%clk 0:03:00]} 6. g3 {[%clk 0:02:54.4]} 6... Bf5 {[%clk
0:02:58.8]} 7. Bf4 {[%clk 0:02:53.9]} 7... Qd8 {[%clk 0:02:57.1]} 8. Bg2 {[%clk
0:02:52.4]} 8... h6 {[%clk 0:02:55.8]} 9. O-O {[%clk 0:02:51.1]} 9... e6 {[%clk
0:02:55.8]} 10. Re1 {[%clk 0:02:45.3]} 10... Be7 {[%clk 0:02:55.5]} 11. Ne5
{[%clk 0:02:40.2]} 11... O-O {[%clk 0:02:54.4]} 12. Ne4 {[%clk 0:01:57.3]} 12...
Nbd7 {[%clk 0:02:51]} 13. Nxd7 {[%clk 0:01:53.5]} 13... Qxd7 {[%clk 0:02:49.7]}
14. Nxf6+ {[%clk 0:01:49]} 14... Bxf6 {[%clk 0:02:49.6]} 15. c3 {[%clk
0:01:46.9]} 15... Rfd8 {[%clk 0:02:46.9]} 16. Qe2 {[%clk 0:01:45.1]} 16... Rac8
{[%clk 0:02:45.9]} 17. Rad1 {[%clk 0:01:42.8]} 17... Qe7 {[%clk 0:02:44.9]} 18.
Be5 {[%clk 0:01:35.6]} 18... Bxe5 {[%clk 0:02:43]} 19. Qxe5 {[%clk 0:01:34.6]}
19... Qd6 {[%clk 0:02:40.5]} 20. Bf3 {[%clk 0:01:09.4]} 20... b6 {[%clk
0:02:34.9]} 21. Qxd6 {[%clk 0:01:03.9]} 21... Rxd6 {[%clk 0:02:33.5]} 22. Re5
{[%clk 0:01:03.3]} 22... c5 {[%clk 0:02:30.7]} 23. dxc5 {[%clk 0:00:58.7]} 23...
Rxd1+ {[%clk 0:02:23.3]} 24. Bxd1 {[%clk 0:00:59.6]} 24... bxc5 {[%clk
0:02:23.3]} 25. Kf1 {[%clk 0:00:43.5]} 25... Kf8 {[%clk 0:02:23.2]} 26. Ke1
{[%clk 0:00:43.5]} 26... Ke7 {[%clk 0:02:23.7]} 27. h4 {[%clk 0:00:39.7]} 27...
Kd6 {[%clk 0:02:24]} 28. Re3 {[%clk 0:00:39.3]} 28... Rb8 {[%clk 0:02:24.6]} 29.
Re2 {[%clk 0:00:34.9]} 29... g5 {[%clk 0:02:25]} 30. Rd2+ {[%clk 0:00:35]} 30...
Ke7 {[%clk 0:02:24.8]} 31. hxg5 {[%clk 0:00:29.2]} 31... hxg5 {[%clk 0:02:25.7]}
32. Bf3 {[%clk 0:00:28.4]} 32... Bb1 {[%clk 0:02:19.4]} 33. b3 {[%clk
0:00:26.2]} 33... a5 {[%clk 0:02:15]} 34. Bc6 {[%clk 0:00:24.8]} 34... Rb6
{[%clk 0:02:13.6]} 35. Bf3 {[%clk 0:00:18.7]} 35... f5 {[%clk 0:02:12.9]} 36.
Ke2 {[%clk 0:00:17.4]} 36... g4 {[%clk 0:02:10.2]} 37. Bg2 {[%clk 0:00:17.7]}
37... a4 {[%clk 0:02:05]} 38. Rb2 {[%clk 0:00:17]} 38... Be4 {[%clk 0:01:59]}
39. Bxe4 {[%clk 0:00:17.2]} 39... fxe4 {[%clk 0:01:59.9]} 40. Ke3 {[%clk
0:00:17.8]} 40... c4 {[%clk 0:01:58.4]} 41. b4 {[%clk 0:00:16.9]} 41... Rd6
{[%clk 0:01:59]} 42. Kxe4 {[%clk 0:00:16.5]} 42... Rd3 {[%clk 0:01:59.6]} 43.
Rc2 {[%clk 0:00:14.4]} 43... Kd6 {[%clk 0:01:58.9]} 44. Kf4 {[%clk 0:00:14.6]}
44... a3 {[%clk 0:01:56.6]} 45. Kxg4 {[%clk 0:00:14.2]} 45... Rd1 {[%clk
0:01:56.6]} 46. f4 {[%clk 0:00:11.4]} 46... Rb1 {[%clk 0:01:57]} 47. Rd2+ {[%clk
0:00:11.6]} 47... Ke7 {[%clk 0:01:56.1]} 48. Rd4 {[%clk 0:00:11.6]} 48... Rb2
{[%clk 0:01:55.9]} 49. Rxc4 {[%clk 0:00:11.8]} 49... Rxa2 {[%clk 0:01:56.8]} 50.
Rc7+ {[%clk 0:00:11.9]} 50... Kf6 {[%clk 0:01:56]} 51. Ra7 {[%clk 0:00:12.8]}
51... Ra1 {[%clk 0:01:55.3]} 52. b5 {[%clk 0:00:11.9]} 52... a2 {[%clk
0:01:53.6]} 53. c4 {[%clk 0:00:11.7]} 53... Rc1 {[%clk 0:01:54]} 54. Rxa2 {[%clk
0:00:11.3]} 54... Rxc4 {[%clk 0:01:54.5]} 55. Rb2 {[%clk 0:00:11.5]} 55... e5
{[%clk 0:01:54.1]} 56. b6 {[%clk 0:00:10.6]} 1-0

[Event "*** SCC Grand Prix: Titled Tuesday Blitz"]
[Site "Chess.com"]
[Date "2020.06.09"]
[Round "3"]
[White "Lubov_Gordyk"]
[Black "eljanov"]
[Result "1/2-1/2"]
[WhiteElo "2632"]
[BlackElo "2817"]
[TimeControl "180+1"]
[EndTime "9:27:54 PDT"]
[Termination "Game drawn by agreement"]

1. e4 {[%clk 0:03:00.9]} 1... c6 {[%clk 0:02:59]} 2. Nf3 {[%clk 0:02:59.8]} 2...
d5 {[%clk 0:02:59.3]} 3. d3 {[%clk 0:03:00.4]} 3... Bg4 {[%clk 0:02:58]} 4. Be2
{[%clk 0:03:00.2]} 4... e6 {[%clk 0:02:57.8]} 5. O-O {[%clk 0:02:58.1]} 5... Nf6
{[%clk 0:02:56.8]} 6. Nbd2 {[%clk 0:02:57.2]} 6... Be7 {[%clk 0:02:56.4]} 7. Ne5
{[%clk 0:02:54.2]} 7... Bxe2 {[%clk 0:02:52.2]} 8. Qxe2 {[%clk 0:02:54.6]} 8...
O-O {[%clk 0:02:52.3]} 9. Re1 {[%clk 0:02:53.8]} 9... Nbd7 {[%clk 0:02:49.7]}
10. Nef3 {[%clk 0:02:53.5]} 10... h6 {[%clk 0:02:44.2]} 11. b3 {[%clk
0:02:49.6]} 11... a5 {[%clk 0:02:43.7]} 12. a4 {[%clk 0:02:46.3]} 12... Qc7
{[%clk 0:02:40.1]} 13. e5 {[%clk 0:02:37.6]} 13... Nh7 {[%clk 0:02:39.3]} 14.
Bb2 {[%clk 0:02:37.6]} 14... b5 {[%clk 0:02:21.6]} 15. h4 {[%clk 0:02:33.2]}
15... Bb4 {[%clk 0:01:48.2]} 16. c3 {[%clk 0:01:59.3]} 16... Be7 {[%clk
0:01:46.4]} 17. g3 {[%clk 0:01:51.9]} 17... Qb7 {[%clk 0:01:43.2]} 18. Bc1
{[%clk 0:01:47.1]} 18... Rfc8 {[%clk 0:01:26]} 19. Nd4 {[%clk 0:01:35.1]} 19...
Nc5 {[%clk 0:01:14.7]} 20. N2f3 {[%clk 0:01:27.9]} 20... bxa4 {[%clk 0:01:05.6]}
21. bxa4 {[%clk 0:01:27.4]} 21... Rab8 {[%clk 0:01:01.3]} 22. Be3 {[%clk
0:01:20.5]} 22... Qa6 {[%clk 0:00:57.5]} 23. Red1 {[%clk 0:01:20.6]} 23... Nb3
{[%clk 0:00:51.5]} 24. Rab1 {[%clk 0:01:13.6]} 24... Nxd4 {[%clk 0:00:46.6]} 25.
Nxd4 {[%clk 0:01:13.8]} 25... Nf8 {[%clk 0:00:46.8]} 26. Rxb8 {[%clk 0:00:52.4]}
26... Rxb8 {[%clk 0:00:45.5]} 27. Qg4 {[%clk 0:00:52.9]} 27... Kh7 {[%clk
0:00:33.9]} 28. Qf4 {[%clk 0:00:51.4]} 28... Kg8 {[%clk 0:00:33.1]} 29. Qg4
{[%clk 0:00:50.8]} 29... Kh7 {[%clk 0:00:21.8]} 30. Qf4 {[%clk 0:00:47.5]} 30...
Kg8 {[%clk 0:00:19.6]} 1/2-1/2